bitfinex/quotes_ETHUSD_20250518
["timestamp","ask_amount","ask_price","bid_price","bid_amount"]
[1747553761898,3.99589474,2502.6,2502.0,0.7783]
[1747553762097,0.8012,2502.5,2502.0,4.77502847]
[1747553762293,4.79722348,2502.5,2502.0,3.99672847]
[1747553762593,4.79722348,2502.5,2501.9,3.99689919]
[1747553762594,7.43,2502.4,2501.9,3.99689919]
[1747553762791,7.433,2502.3,2502.0,0.87722916]
[1747553763340,7.433,2502.3,2502.0,4.8739902]
[1747553763691,7.433,2502.3,2502.1,3.99662173]
[1747553763922,7.433,2502.3,2502.0,4.87399932]
[1747553764084,7.433,2502.3,2502.1,3.99663134]
[1747553764290,0.8012,2502.5,2502.1,4.88365271]
[1747553764629,14.86,2502.4,2502.0,3.99668841]
[1747553765188,14.86,2502.4,2501.9,3.99688386]
[1747553765483,14.86,2502.4,2501.8,4.77541133]
[1747553765689,14.86,2502.4,2502.0,3.9967891]
[1747553766121,14.86,2502.4,2502.1,3.99662575]
[1747553766543,12.938,2502.8,2502.3,3.99627881]
[1747553766717,13.7021,2502.8,2502.4,3.99616343]
[1747553767037,14.862,2502.7,2502.4,3.99616343]
[1747553767189,14.83291909,2502.7,2502.4,3.99608859]
[1747553767389,13.7021,2502.8,2502.4,3.99608859]
[1747553767588,14.862,2502.7,2502.4,3.99608859]
[1747553768036,14.862,2502.7,2502.5,3.99599446]
[1747553768422,14.862,2502.7,2502.4,3.99608199]
[1747553768589,14.862,2502.7,2502.3,3.99626587]
[1747553769105,14.862,2502.7,2502.1,3.99652318]
[1747553769311,4.81922133,2502.6,2502.1,3.99661788]
[1747553769505,4.81922133,2502.6,2501.9,4.81076098]
[1747553769720,3.99604424,2502.5,2501.9,3.9969623]
[1747553769920,3.99604424,2502.5,2502.0,3.99675765]
[1747553770122,4.81946368,2502.4,2501.7,3.99720303]
[1747553770324,0.8233,2502.3,2501.7,4.81100303]
[1747553770511,0.8233,2502.3,2501.9,3.996928]
[1747553770512,14.872,2502.2,2501.9,3.996928]
[1747553770716,14.872,2502.2,2501.8,3.997061]
[1747553771420,0.8233,2502.1,2501.7,2.5]
[1747553771598,18.87688183,2502.0,2501.7,2.5]
[1747553772236,18.87688183,2502.0,2501.4,3.99767933]
[1747553773001,14.879,2501.9,2501.5,3.99757528]
[1747553773530,3.99682076,2502.0,2501.5,3.99757528]
[1747553773834,14.878,2501.8,2501.5,3.99757528]
[1747553774135,14.878,2501.8,2501.4,3.99768826]
[1747553774318,4.82001677,2502.1,2501.5,3.9975066]
[1747553774519,4.82001677,2502.1,2501.8,3.99700964]
[1747553774520,8.2563,2502.1,2501.8,3.99700964]
[1747553774710,0.8233,2502.1,2501.9,3.99684763]
[1747553774916,7.433,2502.0,2501.8,3.99702705]
[1747553775359,7.433,2502.0,2501.9,3.9969623]
[1747553775498,7.433,2502.0,2501.5,0.8138]
[1747553775704,7.433,2502.0,2501.9,3.9969623]
[1747553776336,0.8233,2502.3,2501.9,3.9969623]
[1747553776536,7.433,2502.0,2501.9,3.9969623]
[1747553776742,7.449,2502.2,2502.1,3.99654547]
[1747553776899,14.87623725,2502.2,2502.0,3.99673751]
[1747553777541,0.8233,2502.3,2502.0,3.99673751]
[1747553777704,7.433,2502.1,2502.0,3.99673751]
[1747553779355,7.433,2502.1,2501.9,3.99686191]
[1747553779563,7.433,2502.1,2501.9,3.99692853]
[1747553780255,7.433,2502.1,2502.0,3.99680255]
[1747553780459,7.433,2502.1,2501.9,3.99684706]
[1747553780663,7.41213643,2502.1,2502.0,3.99680255]
[1747553782166,0.8233,2502.3,2502.0,0.79937499]
[1747553782327,8.2398,2502.7,2502.1,0.82836687]
[1747553782655,12.938,2502.8,2502.6,3.99584432]
[1747553782845,7.433,2502.7,2502.6,3.99584432]
[1747553783365,12.938,2502.8,2502.2,3.99648309]
[1747553783550,7.433,2502.8,2502.7,3.99568466]
[1747553784432,0.8048,2503.2,2502.9,3.99534787]
[1747553784633,7.433,2503.1,2502.9,3.99534787]
[1747553785243,7.433,2503.1,2502.7,3.99552521]
[1747553785668,7.433,2503.1,2502.8,3.99551137]
[1747553785852,13.39750033,2503.1,2502.4,4.82520989]
[1747553786170,11.42814554,2503.1,2502.5,3.99588867]
[1747553786365,3.99528385,2503.0,2502.5,3.99588867]
[1747553786568,0.8048,2502.9,2502.5,3.99588867]
[1747553787271,7.465,2502.8,2502.5,3.99588867]
[1747553787565,7.465,2502.8,2502.6,3.99580098]
[1747553789368,0.8048,2502.9,2502.6,3.99580098]
[1747553789551,7.433,2502.7,2502.6,3.99580098]
[1747553790352,7.433,2502.7,2502.5,3.99589987]
[1747553790553,7.433,2502.7,2502.5,4.67379333]
[1747553790851,7.433,2502.7,2502.6,3.99584432]
[1747553792355,7.433,2502.7,2502.0,0.7768]
[1747553792356,0.8015,2502.7,2502.0,0.7768]
[1747553792555,7.432,2502.6,2502.0,0.7768]
[1747553792750,7.432,2502.5,2502.2,0.797]
[1747553792966,0.7827,2502.9,2502.2,0.797]
[1747553792967,7.46,2502.9,2502.7,3.99556333]
[1747553793166,7.432,2502.8,2502.7,3.99556333]
[1747553794051,0.7827,2503.1,2502.7,3.99556333]
[1747553794264,14.929,2503.0,2502.7,3.99556333]
[1747553794459,14.929,2503.0,2502.6,4.79276782]
[1747553795077,14.929,2503.0,2502.6,3.99576782]
[1747553796773,14.92365452,2503.0,2502.6,3.99576782]
[1747553797275,0.7827,2503.1,2502.7,3.99561735]
[1747553797588,7.463,2503.0,2502.8,3.99552501]
[1747553798185,7.463,2503.0,2502.7,3.99561059]
[1747553798652,7.463,2502.9,2502.7,3.99561059]
[1747553799060,7.463,2502.9,2502.7,3.99561059]
[1747553799680,7.463,2502.9,2502.0,0.797]
[1747553799884,7.463,2502.9,2502.2,3.99648309]
[1747553800081,4.77839624,2502.7,2502.2,3.99644942]
[1747553800672,3.99492965,2503.2,2502.7,3.99557094]
[1747553800673,7.463,2503.0,2502.7,3.99557094]
[1747553800901,7.463,2503.0,2502.7,3.99566237]
[1747553801602,7.463,2503.0,2502.6,3.99576127]
[1747553801801,7.463,2502.9,2502.7,3.99554643]
[1747553802003,7.463,2502.9,2502.6,3.99581219]
[1747553802196,7.463,2502.9,2502.8,3.99552501]
[1747553802696,7.463,2502.9,2502.7,3.99560239]
[1747553803081,7.463,2502.9,2502.8,3.99552501]
[1747553803608,7.463,2502.9,2502.7,3.99560901]
[1747553804905,4.77749191,2503.3,2502.8,3.9954753]
[1747553805073,7.463,2502.9,2502.7,3.99559652]
[1747553807022,7.463,2502.9,2502.5,3.99594857]
[1747553807023,7.463,2502.9,2502.5,3.99591958]
[1747553807225,8.2457,2502.9,2502.4,8.0]
[1747553807386,8.2457,2502.9,2502.4,3.99616368]
[1747553807987,3.99560766,2502.8,2502.3,2.5]
[1747553808302,3.99575396,2502.7,2502.3,2.5]
[1747553808606,7.468,2502.6,2502.3,2.5]
[1747553808785,0.8004,2502.5,2502.3,2.5]
[1747553808988,11.45916368,2502.4,2502.3,2.5]
[1747553809224,11.45916368,2502.4,2501.9,3.99684677]
[1747553809608,11.45916368,2502.4,2501.9,4.55410686]
[1747553810140,7.463,2502.4,2502.0,3.9967847]
[1747553810617,7.463,2502.4,2502.0,3.99675697]
[1747553810820,7.463,2502.4,2502.1,3.99661416]
[1747553811019,7.463,2502.4,2501.9,4.55420132]
[1747553811020,7.463,2502.4,2502.0,3.996741]
[1747553812041,0.8004,2502.5,2502.0,3.996741]
[1747553812042,14.931,2502.3,2502.1,3.99649243]
[1747553813661,14.9182919,2502.3,2502.1,3.99649243]
[1747553814661,14.9182919,2502.3,2502.2,3.99648309]
[1747553815021,0.8004,2502.5,2502.2,3.99648309]
[1747553815227,7.464,2502.4,2502.3,3.99630333]
[1747553815427,7.464,2502.4,2502.2,3.99641891]
[1747553816856,7.464,2502.4,2502.1,4.80026298]
[1747553817559,7.464,2502.3,2502.1,4.80026298]
[1747553819264,7.464,2502.3,2502.0,0.85509423]
[1747553820373,7.464,2502.3,2502.1,3.99663822]
[1747553820542,7.464,2502.3,2502.0,4.85184109]
[1747553821175,7.464,2502.3,2502.1,3.99663795]
[1747553821689,7.464,2502.3,2502.0,0.85509423]
[1747553821973,12.942,2502.6,2502.1,3.99663405]
[1747553822138,7.464,2502.2,2502.1,3.99663405]
[1747553823180,7.452,2502.4,2502.3,3.99632338]
[1747553823477,14.916,2502.4,2502.3,3.99632338]
[1747553823974,12.942,2502.6,2502.3,3.99632338]
[1747553824178,12.942,2502.6,2502.5,3.99600399]
[1747553824357,20.396,2502.6,2502.5,3.99600399]
[1747553824553,20.396,2502.6,2502.4,3.99606286]
[1747553824758,20.396,2502.6,2502.3,4.81589835]
[1747553824952,20.396,2502.6,2502.1,5.01914229]
[1747553824953,20.396,2502.6,2502.2,3.99637032]
[1747553825250,20.396,2502.6,2502.1,5.83873298]
[1747553827084,20.396,2502.6,2502.3,3.99631553]
[1747553831664,20.396,2502.6,2502.3,1.23349077]
[1747553831872,20.396,2502.6,2502.5,3.99600399]
[1747553832797,20.396,2502.6,2502.4,3.996116]
[1747553835515,20.396,2502.6,2502.5,3.99600399]
[1747553836511,20.39097773,2502.6,2502.5,3.99600399]
[1747553837321,12.93697773,2502.6,2502.5,3.99600399]
[1747553837843,12.93697773,2502.6,2502.5,13.60983265]
[1747553839026,0.7788,2503.1,2502.5,9.61382866]
[1747553839247,7.453,2503.0,2502.9,3.99527641]
[1747553839743,7.453,2503.1,2502.8,3.99546539]
[1747553841012,7.453,2503.1,2502.7,3.99561693]
[1747553841606,7.453,2503.1,2502.8,3.99549723]
[1747553842729,7.453,2503.1,2502.7,3.99565951]
[1747553842906,0.7788,2503.0,2502.6,5.38718395]
[1747553843104,0.7788,2503.0,2502.7,3.99568152]
[1747553844049,0.7788,2503.0,2502.5,9.61382866]
[1747553844214,3.99545519,2502.9,2502.5,8.0]
[1747553844445,5.9967753,2503.0,2502.4,3.99608517]
[1747553844645,5.9967753,2503.0,2502.5,3.99595742]
[1747553845264,14.891,2502.9,2502.6,3.99581713]
[1747553845762,7.453,2502.8,2502.6,3.99581713]
[1747553846362,0.7788,2503.0,2502.6,3.99581713]
[1747553846582,14.889,2502.9,2502.6,3.99584432]
[1747553847494,14.889,2502.9,2502.5,3.99597331]
[1747553847774,20.85069169,2502.9,2502.4,3.99603242]
[1747553848076,18.88438213,2502.9,2502.4,3.99603242]
[1747553849068,0.7788,2502.8,2502.4,3.99612198]
[1747553849261,0.7788,2502.8,2502.3,11.9962334]
[1747553850166,18.88438213,2502.9,2502.3,8.0]
[1747553850167,0.7788,2502.6,2502.3,8.0]
[1747553850362,5.25211775,2502.6,2502.2,2.5]
[1747553850542,4.77466672,2502.6,2502.2,2.5]
[1747553850742,0.7788,2502.6,2502.2,6.49647902]
[1747553851470,4.77466314,2502.6,2502.2,2.5]
[1747553851974,0.7788,2502.6,2502.2,6.49648162]
[1747553852871,0.7788,2502.6,2502.3,3.99629236]
[1747553853061,0.7788,2502.6,2502.2,6.49638173]
[1747553853256,0.7788,2502.6,2502.3,4.64594511]
[1747553854641,0.7788,2502.6,2502.3,0.64962924]
[1747553854841,0.7788,2502.6,2502.2,2.5]
[1747553854842,4.77470204,2502.6,2502.2,2.5]
[1747553855038,0.7788,2502.6,2502.3,0.38015404]
[1747553855876,4.77466674,2502.6,2502.3,0.38015404]
[1747553856582,0.77427906,2502.6,2502.3,0.38015404]
[1747553857178,7.435,2502.5,2502.3,0.38015404]
[1747553857543,7.435,2502.5,2502.4,0.38015404]
[1747553858240,7.435,2502.5,2502.4,4.37631772]
[1747553858668,16.93743792,2502.9,2502.4,4.37631772]
[1747553858669,7.435,2502.6,2502.5,3.99598622]
[1747553859591,12.942,2502.9,2502.4,5.58772256]
[1747553859766,20.377,2502.9,2502.7,3.99555025]
[1747553860157,20.377,2502.9,2502.7,3.99568466]
[1747553860352,12.942,2502.9,2502.8,4.37567905]
[1747553862858,12.942,2502.9,2502.8,5.26034564]
[1747553864292,7.434,2503.2,2503.0,3.99519447]
[1747553864501,7.434,2503.3,2503.1,4.37519837]
[1747553864787,7.434,2503.4,2503.1,4.37519837]
[1747553865162,7.434,2503.4,2503.2,0.38015404]
[1747553865554,7.434,2503.4,2503.1,3.99504433]
[1747553867384,7.434,2503.4,2503.0,3.99514428]
[1747553868890,0.7729,2503.5,2503.0,4.96523277]
[1747553869096,7.434,2503.4,2503.0,4.96523277]
[1747553869601,0.7729,2503.5,2503.0,4.96523277]
[1747553869602,7.434,2503.3,2503.1,3.9949281]
[1747553871500,7.434,2503.3,2503.0,3.99510472]
[1747553873204,7.434,2503.3,2502.8,4.88011077]
[1747553873205,0.7542,2503.2,2502.8,4.88011077]
[1747553873685,0.7542,2503.2,2502.9,3.99529251]
[1747553874382,7.434,2503.3,2503.0,3.99513589]
[1747553876338,7.42951108,2503.3,2503.0,3.99513589]
[1747553876820,0.7542,2503.5,2503.1,3.99501632]
[1747553877115,7.433,2503.4,2503.0,8.7856]
[1747553877305,7.433,2503.4,2503.3,3.99472696]
[1747553877818,7.433,2503.4,2503.2,3.99480047]
[1747553880127,7.433,2503.4,2503.1,1.37503087]
[1747553880290,7.433,2503.4,2503.2,3.99487074]
[1747553880898,7.433,2503.4,2503.3,3.99466952]
[1747553881332,7.433,2503.4,2503.2,3.99480716]
[1747553881620,7.433,2503.4,2503.2,5.80985167]
[1747553881827,7.433,2503.5,2503.4,3.99456738]
[1747553882025,7.433,2503.5,2503.3,3.99467034]
[1747553884132,7.433,2503.5,2503.4,3.99455126]
[1747553884431,12.942,2503.7,2503.4,3.99455126]
[1747553884746,7.432,2503.6,2503.5,3.99437351]
[1747553884905,12.942,2503.7,2503.5,3.99437351]
[1747553885114,7.432,2503.6,2503.5,3.99433077]
[1747553885539,7.432,2503.6,2503.5,4.93070882]
[1747553886136,7.432,2503.6,2503.4,3.9944811]
[1747553887645,12.942,2503.7,2503.4,3.9944811]
[1747553887849,20.374,2503.7,2503.4,3.9944811]
[1747553888542,20.374,2503.7,2503.3,0.58099072]
[1747553888845,24.36819061,2503.7,2503.2,3.99483457]
[1747553890553,20.374,2503.7,2503.4,3.99447507]
[1747553892848,20.374,2503.7,2503.5,3.99437077]
[1747553893248,12.942,2503.7,2503.6,3.99424828]
[1747553893415,20.374,2503.7,2503.6,3.99424828]
[1747553893617,12.942,2503.7,2503.6,3.99424828]
[1747553893816,20.374,2503.7,2503.6,3.99424828]
[1747553894568,12.942,2503.7,2503.6,3.99424828]
[1747553895852,12.942,2503.7,2503.5,3.99438761]
[1747553896219,12.93557282,2503.7,2503.5,3.99438761]
[1747553897633,0.8242,2504.1,2503.5,0.87477991]
[1747553897828,7.431,2504.2,2503.5,11.99428372]
[1747553898146,7.431,2504.2,2504.0,3.99355149]
[1747553898722,0.8242,2504.4,2504.0,3.99355149]
[1747553898923,7.431,2504.3,2504.0,3.99355149]
[1747553899642,0.8242,2504.4,2504.0,3.99355149]
[1747553899843,7.431,2504.3,2504.0,3.99355149]
[1747553902333,7.431,2504.3,2503.9,3.99370915]
[1747553904364,0.8242,2504.4,2503.9,3.99370915]
[1747553904573,7.43,2504.3,2503.9,4.89841731]
[1747553904777,7.43,2504.3,2504.0,3.99347651]
[1747553905282,7.43,2504.3,2504.1,3.99344364]
[1747553905572,7.43,2504.3,2504.0,3.99353411]
[1747553910996,7.43,2504.3,2503.9,4.89846363]
[1747553911149,7.43,2504.3,2503.9,3.99375547]
[1747553911971,7.43,2504.3,2503.8,3.99388607]
[1747553912745,11.42314922,2504.3,2503.8,3.99388607]
[1747553912946,7.43,2504.3,2503.9,3.99371772]
[1747553916107,7.42237304,2504.3,2504.0,3.99355947]
[1747553918129,7.42237304,2504.3,2503.9,3.99370566]
[1747553921399,7.42237304,2504.3,2504.0,3.99357376]
[1747553923028,0.8242,2504.4,2504.0,3.99357376]
[1747553923226,7.429,2504.2,2504.0,3.99357376]
[1747553924027,7.429,2504.2,2503.9,3.99371791]
[1747553924324,7.429,2504.2,2504.0,3.99360442]
[1747553924831,7.429,2504.2,2503.9,3.99364905]
[1747553924999,7.429,2504.2,2503.9,4.92740625]
[1747553925404,7.429,2504.2,2504.0,3.99360355]
[1747553925902,7.429,2504.2,2504.0,3.9935268]
[1747553927336,7.429,2504.2,2503.9,3.99368513]
[1747553933541,0.805,2504.1,2503.7,4.21061496]
[1747553935557,0.805,2504.1,2503.7,0.21664651]
[1747553935732,5.21645742,2504.0,2503.7,0.21664651]
[1747553935919,5.21645742,2504.0,2503.8,0.00485816]
[1747553938457,3.9937129,2504.0,2503.8,0.00485816]
[1747553939962,12.22549236,2504.1,2503.8,0.00485816]
[1747553942686,3.99364082,2504.0,2503.8,0.00485816]
[1747553946894,12.22550236,2504.1,2503.8,0.00485816]
[1747553947954,3.99363996,2504.0,2503.8,0.00485816]
[1747553949008,3.99363996,2504.0,2503.9,0.38026386]
[1747553951069,3.9887818,2504.0,2503.9,0.38026386]
[1747553951276,7.17317946,2504.0,2503.9,0.38026386]
[1747553951858,3.99392922,2503.8,2503.7,0.21664651]
[1747553952063,4.81352922,2503.8,2503.7,0.21664651]
[1747553952764,4.81352922,2503.8,2503.7,0.59668175]
[1747553952961,5.93074135,2503.8,2503.7,0.59668175]
[1747553955008,5.93074135,2503.8,2503.7,0.21664651]
[1747553955858,5.92519374,2503.8,2503.7,0.21664651]
[1747553956495,6.47519374,2503.8,2503.7,0.21664651]
[1747553959014,14.47519374,2503.8,2503.7,0.21664651]
[1747553959722,15.87544276,2503.8,2503.7,0.21664651]
[1747553961228,23.89253455,2503.8,2503.7,0.21664651]
[1747553961433,4.8073553,2502.7,2502.3,0.8]
[1747553961626,7.429,2502.6,2502.1,12.79651871]
[1747553961783,7.429,2502.6,2502.2,3.99647714]
[1747553961985,7.429,2502.6,2502.1,14.47592055]
[1747553963127,7.429,2502.6,2502.2,3.9964555]
[1747553963642,7.429,2502.6,2502.3,3.99631548]
[1747553964333,7.429,2502.6,2502.2,3.99640592]
[1747553964483,7.429,2502.6,2502.2,5.87291566]
[1747553964905,7.429,2502.6,2502.2,1.87650974]
[1747553965239,7.429,2502.6,2501.8,0.8268]
[1747553965447,3.99663934,2502.2,2501.8,0.8268]
[1747553965621,7.43,2502.1,2501.8,0.8268]
[1747553965822,12.18372999,2502.1,2501.6,3.99743044]
[1747553966653,8.187,2502.1,2501.7,3.9972412]
[1747553966809,7.43,2502.1,2501.8,3.9970414]
[1747553967871,7.43,2502.1,2501.7,0.91173985]
[1747553968420,7.43,2502.1,2501.7,4.90901836]
[1747553969458,8.185,2502.3,2501.7,4.90901836]
[1747553969459,0.757,2502.3,2501.7,4.90901836]
[1747553969665,0.8237,2502.5,2502.1,3.99655349]
[1747553969849,4.81942989,2502.7,2502.1,3.99655349]
[1747553970060,18.85788083,2502.6,2502.1,3.99655349]
[1747553970663,18.85788083,2502.6,2502.0,3.99674108]
[1747553970878,13.7627,2503.1,2502.2,0.7715]
[1747553971040,7.432,2502.8,2502.3,3.99619049]
[1747553971571,2.19997,2503.0,2502.1,0.7715]
[1747553971718,14.869,2502.9,2502.6,0.7715]
[1747553972164,7.432,2502.8,2502.6,4.76732189]
[1747553975052,7.432,2502.9,2502.6,0.7715]
[1747553975625,7.432,2502.9,2502.4,4.81368885]
[1747553976056,12.939,2503.1,2502.4,5.29508413]
[1747553976231,7.435,2502.9,2502.6,3.9958255]
[1747553977838,7.435,2503.0,2502.9,3.99531533]
[1747553978145,7.435,2503.0,2502.5,0.7512]
[1747553978146,7.435,2503.0,2502.8,3.99544039]
[1747553982765,12.939,2503.1,2502.8,3.99544039]
[1747553982976,20.373,2503.1,2502.9,3.99525605]
[1747553983684,20.373,2503.1,2503.0,3.99520575]
[1747553984183,12.939,2503.1,2503.0,3.99520575]
[1747553984765,12.939,2503.1,2502.8,4.80796276]
[1747553984968,12.939,2503.1,2502.9,3.99522389]
[1747553987482,12.939,2503.1,2503.0,3.99520575]
[1747553987958,12.939,2503.1,2502.9,3.99528654]
[1747553993054,12.939,2503.1,2502.8,4.80793629]
[1747553994089,0.7992,2503.0,2502.6,3.99579444]
[1747553994402,4.79448866,2503.0,2502.4,3.99616368]
[1747553994978,3.99538424,2502.9,2502.4,3.99616368]
[1747553995183,3.99538424,2502.9,2502.3,3.99624236]
[1747553995184,3.99553097,2502.8,2502.3,3.99624236]
[1747553995485,7.434,2502.7,2502.3,3.99624236]
[1747553995657,8.2332,2502.7,2502.3,3.99624236]
[1747553995858,8.22761436,2502.7,2502.3,3.99624236]
[1747553996791,8.22761436,2502.7,2502.2,3.99641018]
[1747553996956,8.22761436,2502.7,2502.2,5.67498135]
[1747553997164,8.22761436,2502.7,2502.3,3.99630303]
[1747553998495,8.22761436,2502.7,2502.2,5.67500904]
[1747553998697,12.22342828,2502.7,2502.2,1.67857117]
[1747553998885,12.22342828,2502.7,2502.2,3.99647274]
[1747553999080,3.99585684,2502.6,2502.1,4.78930488]
[1747553999273,12.2233745,2502.7,2502.2,3.99646664]
[1747554000176,8.22761436,2502.7,2502.3,3.99622769]
[1747554000504,8.22761436,2502.7,2502.3,3.9962482]
[1747554001398,13.78896882,2502.7,2502.0,3.99675802]
[1747554001576,0.8227,2502.6,2502.0,3.99675802]
[1747554001907,3.99608335,2502.5,2502.0,3.99675802]
[1747554003409,4.81861522,2502.6,2502.1,3.99662872]
[1747554003780,0.8227,2502.6,2502.1,3.99662872]
[1747554004019,0.8227,2502.6,2502.2,3.99642139]
[1747554004175,7.435,2502.5,2502.2,3.99642139]
[1747554004374,7.435,2502.5,2502.3,3.99621481]
[1747554005303,7.435,2502.5,2502.2,3.99640361]
[1747554005880,7.435,2502.5,2502.1,0.757]
[1747554006080,7.435,2502.5,2502.1,1.23237914]
[1747554007218,7.435,2502.5,2502.2,3.99647237]
[1747554008202,7.435,2502.5,2502.2,3.99648309]
[1747554010214,7.435,2502.5,2502.1,5.22893999]
[1747554010510,4.81859969,2502.6,2502.1,5.22893999]
[1747554010716,4.81859969,2502.6,2502.2,3.9964544]
[1747554010717,7.43,2502.5,2502.2,3.9964544]
[1747554011094,7.43,2502.5,2502.1,5.22893545]
[1747554011293,7.43,2502.5,2502.2,3.99646452]
[1747554014229,7.43,2502.5,2502.1,5.22893731]
[1747554015695,0.8227,2502.6,2502.2,4.82743074]
[1747554015895,7.43,2502.5,2502.2,4.82743074]
[1747554016395,7.43,2502.5,2502.2,3.99641739]
[1747554017535,7.43,2502.5,2502.3,3.9963076]
[1747554017828,7.43,2502.5,2502.2,3.99640576]
[1747554018198,7.43,2502.5,2502.1,5.22899474]
[1747554018397,7.43,2502.5,2502.2,3.99644338]
[1747554018597,7.43,2502.5,2502.1,5.22899474]
[1747554020630,7.43,2502.5,2501.9,0.7835]
[1747554020833,4.80709394,2502.4,2501.9,3.99686614]
[1747554021130,0.8109,2502.4,2501.8,3.99710384]
[1747554022031,4.80707566,2502.4,2501.9,3.9968801]
[1747554022436,0.8109,2502.4,2502.0,3.99677312]
[1747554022736,0.8109,2502.4,2502.0,4.79613844]
[1747554024338,0.8109,2502.4,2502.1,3.99663648]
[1747554027940,0.8109,2502.4,2502.0,4.79603232]
[1747554029040,0.8109,2502.4,2502.1,3.99663035]
[1747554030942,0.8109,2502.4,2502.0,4.79611013]
[1747554031108,0.8109,2502.4,2502.0,3.99674481]
[1747554032444,0.8109,2502.4,2502.1,3.99664259]
[1747554032844,0.8109,2502.4,2501.9,3.99685251]
[1747554033143,4.80707886,2502.4,2501.9,3.99685251]
[1747554033342,7.43,2502.5,2501.7,0.91173985]
[1747554033343,3.99638542,2502.3,2501.7,0.91173985]
[1747554033547,4.75318275,2502.2,2501.7,3.99723915]
[1747554033849,3.99731747,2501.7,2501.0,4.75710063]
[1747554034021,7.43,2501.8,2501.4,3.99772461]
[1747554034349,7.43,2501.8,2501.0,0.7587]
[1747554034350,7.43,2501.8,2501.5,3.99758706]
[1747554035950,7.43,2501.7,2501.5,3.99758706]
[1747554036452,7.429,2501.7,2501.5,3.99758706]
[1747554036745,0.7566,2501.9,2501.5,3.99758706]
[1747554036937,7.429,2501.8,2501.6,3.99740384]
[1747554037249,7.429,2501.7,2501.5,0.79954633]
[1747554037444,7.429,2501.7,2501.6,3.99730194]
[1747554037651,7.429,2501.9,2501.8,3.99703958]
[1747554037814,7.429,2502.4,2502.0,3.99680255]
[1747554038013,7.429,2502.4,2501.9,4.75554622]
[1747554038851,7.429,2502.4,2502.0,3.99672153]
[1747554040938,7.429,2502.4,2501.9,4.75561014]
[1747554041137,7.429,2502.4,2502.0,3.99669643]
[1747554042953,7.429,2502.3,2502.2,3.99648309]
[1747554043118,7.429,2502.3,2502.1,3.99657901]
[1747554044231,7.429,2502.3,2501.9,0.7587]
[1747554044634,0.7907,2502.2,2501.5,1.62204633]
[1747554045161,4.78724681,2502.2,2501.5,5.6196416]
[1747554046244,4.78724681,2502.2,2501.6,3.99744163]
[1747554046766,4.78724681,2502.2,2501.7,3.99724235]
[1747554047348,0.7907,2502.2,2501.6,3.99744163]
[1747554047545,0.7907,2502.2,2501.5,1.62204633]
[1747554047546,0.7907,2502.2,2501.8,3.99702593]
[1747554049034,0.7907,2502.2,2501.9,3.99695884]
[1747554049240,7.429,2502.1,2501.7,3.99725461]
[1747554049441,7.429,2502.1,2501.9,3.99693153]
[1747554050574,7.429,2502.1,2501.8,3.997059]
[1747554050761,0.7907,2502.2,2501.9,3.99693376]
[1747554050962,7.429,2502.1,2501.9,3.99693376]
[1747554053077,7.384241,2502.1,2501.9,3.99693376]
[1747554053872,7.384241,2502.1,2501.8,3.99704456]
[1747554054475,7.384241,2502.1,2501.9,3.99690069]
[1747554057294,7.384241,2502.1,2501.8,3.99704761]
[1747554058552,7.384241,2502.1,2501.9,3.99695367]
[1747554060581,7.384241,2502.1,2501.8,3.99707541]
[1747554060780,7.384241,2502.1,2501.7,3.99720482]
[1747554060984,7.384241,2502.1,2501.7,4.95887228]
[1747554061282,7.384241,2502.1,2501.8,3.99710468]
[1747554062959,7.384241,2502.1,2501.7,3.99724864]
[1747554063163,7.384241,2502.1,2501.8,3.99710228]
[1747554063359,11.38104115,2502.1,2501.5,9.62204633]
[1747554063560,0.8028,2502.0,2501.5,8.79954633]
[1747554063862,0.8028,2502.0,2501.7,3.99723736]
[1747554064267,0.8028,2502.0,2501.8,3.99708121]
[1747554064474,0.8028,2502.0,2501.7,3.99722353]
[1747554066978,0.8028,2502.0,2501.9,3.9969623]
[1747554067187,7.428,2502.1,2501.9,3.9969623]
[1747554067679,7.428,2502.1,2501.8,3.99705256]
[1747554071585,0.8028,2502.2,2501.8,3.99705256]
[1747554071586,0.8028,2502.2,2501.9,3.99686878]
[1747554071787,7.428,2502.1,2501.9,3.99686878]
[1747554072085,7.428,2502.2,2501.9,4.75545049]
[1747554072254,7.428,2502.2,2502.0,3.9966802]
[1747554072453,7.428,2502.2,2502.1,3.99664282]
[1747554072754,7.428,2502.2,2502.0,3.9967617]
[1747554074285,7.428,2502.2,2501.9,4.75539189]
[1747554075083,7.428,2502.2,2502.0,3.9967915]
[1747554075909,12.945,2502.6,2502.5,3.99600399]
[1747554076116,7.428,2502.7,2502.6,3.99584432]
[1747554076272,7.428,2502.7,2502.5,3.99593967]
[1747554076472,7.428,2502.7,2502.6,3.99584432]
[1747554076912,0.7575,2503.3,2502.3,19.42330063]
[1747554077197,20.373,2503.4,2503.2,3.9948529]
[1747554077361,20.373,2503.4,2503.1,3.99494946]
[1747554077756,20.373,2503.4,2503.0,4.74859976]
[1747554077961,20.373,2503.4,2503.0,4.74861842]
[1747554078197,4.81629757,2503.2,2502.7,0.30289953]
[1747554078365,3.99507748,2503.1,2502.5,11.42195865]
[1747554078560,3.99507748,2503.1,2502.6,3.99582584]
[1747554079289,3.99507748,2503.1,2502.5,11.42190939]
[1747554079501,3.99504614,2503.1,2502.5,11.42190939]
[1747554079915,3.99504614,2503.1,2502.5,3.99590939]
[1747554080392,3.99522786,2503.0,2502.5,3.99590939]
[1747554080596,7.427,2502.9,2502.5,1.68162051]
[1747554080906,7.427,2503.0,2502.8,3.99542921]
[1747554081190,7.427,2503.2,2502.8,3.99542921]
[1747554081762,7.427,2503.2,2502.7,3.99560244]
[1747554082090,7.427,2503.2,2502.6,0.824]
[1747554082394,7.427,2503.2,2502.8,3.9955199]
[1747554082790,7.427,2503.2,2503.1,3.99504614]